Cogmind - Beta 10.1 @@@ ROGUE MODE // 2020.10.02 @ 09:57:32 Player: 3.14 Result: Self-destructed Performance ------------- Evolutions (6) 3000 Regions Visited (15) 3000 Robots Destroyed (180) 900 Value Destroyed (7387) 7387 Prototype IDs (35) 700 Alien Tech Used (2) 400 Bonus (1991) 1991 TOTAL SCORE: 17378 Bonus ------- High Alert Combat Kills 265 Follower Combat Kills 1498 Met Zhirov 300 Built Enhanced Grunts 300 A7 Reached Mainframe 300 Met R17 at Cetus 500 Friendly Fire -1172 Cogmind --------- Core Integrity 1007/1150 Matter 270/300 Energy 227/550 System Corruption 1% Temperature Cool (0) Movement Treading (183) Ox1 Location -4/Factory Parts ------- > --- POWER (2) -------- Reinforced Fission Core Heavy Antimatter Reactor > --- PROPULSION (4) --- Improved Treads Armored Medium Treads Centrium Heavy Treads > --- UTILITY (11) ----- Improved Cooling System Large Storage Unit High-capacity Storage Unit High-capacity Storage Unit Advanced Targeting Computer Improved Core Analyzer Experimental Utility Shielding Layered Medium Armor Plating Centrium Medium Armor Plating Improved Shield Generator > --- WEAPON (2) ------- Advanced Variable Charge Gun Heavy Plasma Cannon > --- INVENTORY (26) --- Light Antimatter Reactor Medium Treads Centrium Heavy Treads Energy Well (500) Energy Well (500) Energy Well (500) Advanced Energy Well (800) Experimental Signal Interpreter Advanced Particle Charger Improved Medium Armor Plating Centrium Medium Armor Plating Centrium Medium Armor Plating Centrium Medium Armor Plating Advanced Focal Shield Advanced Hacking Suite System Backup Module Tesla Rifle Tesla Rifle Tesla Rifle Tesla Rifle Tesla Rifle Long-range Proton Cannon HERF Cannon Phasing Sabre Peak State ------------ > --- POWER ------------ Reinforced Fission Core Heavy Antimatter Reactor > --- PROPULSION ------- Improved Treads Armored Medium Treads Centrium Heavy Treads > --- UTILITY ---------- Large Storage Unit High-capacity Storage Unit High-capacity Storage Unit Advanced Targeting Computer Improved Core Analyzer Experimental Utility Shielding Layered Medium Armor Plating Centrium Medium Armor Plating Improved Shield Generator Assault Drone Bay > --- WEAPON ----------- Advanced Variable Charge Gun Heavy Plasma Cannon > --- INVENTORY -------- Light Antimatter Reactor Medium Treads Centrium Heavy Treads Improved Cooling System Energy Well Energy Well Energy Well Advanced Energy Well Experimental Signal Interpreter Advanced Particle Charger Improved Medium Armor Plating Centrium Medium Armor Plating Centrium Medium Armor Plating Centrium Medium Armor Plating Advanced Focal Shield Advanced Hacking Suite System Backup Module Transdimensional Reconstructor Tesla Rifle Tesla Rifle Tesla Rifle Tesla Rifle Tesla Rifle Long-range Proton Cannon Phasing Sabre [Rating: 122] Favorites ----------- Power Quantum Reactor Engine Ion Engine Power Core Light Nuclear Core Reactor Quantum Reactor Propulsion Light Treads Treads Light Treads Utility High-capacity Storage Unit Device Improved Shield Generator Storage High-capacity Storage Unit Processor Advanced Targeting Computer Protection Layered Heavy Armor Plating Weapon Assault Rifle Energy Gun Beam Rifle Energy Cannon Advanced Beam Cannon Ballistic Gun Assault Rifle Launcher Improved Proton Missile Launcher Slashing Weapon Phasing Sabre Build | -11 -10 -9 -8 -7 -6 -6 -6 -6 -6 -5 -5 -5 -5 -4 -4 ------- Run | Scr Mat Mat Mat Fac Fac Ext Cet Arc Hub Fac Upp Upp Zhi Pro Fac Slots Evolved 12 | . . 2 2 2 2 . . . . 2 . . . . 2 Power 1 | . . . . . 1 . . . . . . . . . . Propulsion 2 | . . . 1 1 . . . . . . . . . . . Utility 9 | . . 2 1 1 1 . . . . 2 . . . . 2 Weapon . | . . . . . . . . . . . . . . . . Parts Attached 215 | 7 6 16 13 13 18 35 16 2 8 16 6 6 10 27 16 Power 22 | 1 1 4 2 . 2 6 2 . 1 . 1 . 1 1 . Engine 13 | 1 1 4 2 . . 4 . . . . 1 . . . . Core 5 | . . . . . 2 2 . . . . . . . 1 . Reactor 4 | . . . . . . . 2 . 1 . . . 1 . . Propulsion 32 | 2 . 2 3 3 3 11 2 . . . 2 1 . 3 . Treads 32 | 2 . 2 3 3 3 11 2 . . . 2 1 . 3 . Leg . | . . . . . . . . . . . . . . . . Wheel . | . . . . . . . . . . . . . . . . Hover . | . . . . . . . . . . . . . . . . Flight . | . . . . . . . . . . . . . . . . Utility 73 | 2 4 1 3 4 10 10 2 2 3 8 1 2 7 5 9 Device 36 | 1 . . 1 2 2 5 1 2 2 4 . 2 5 4 5 Storage 7 | 1 4 . 1 . . . . . . . . . 1 . . Processor 4 | . . 1 . . 2 . . . . 1 . . . . . Hackware . | . . . . . . . . . . . . . . . . Protection 26 | . . . 1 2 6 5 1 . 1 3 1 . 1 1 4 Artifact . | . . . . . . . . . . . . . . . . Weapon 88 | 2 1 9 5 6 3 8 10 . 4 8 2 3 2 18 7 Energy Gun 20 | . 1 . 1 1 . 1 7 . 2 3 . . . . 4 Energy Cannon 32 | . . . 1 4 . 5 1 . 2 2 1 1 2 11 2 Ballistic Gun 13 | 2 . 6 2 . 3 . . . . . . . . . . Ballistic Cannon . | . . . . . . . . . . . . . . . . Launcher 20 | . . 3 1 1 . 1 2 . . 2 1 2 . 6 1 Special Weapon . | . . . . . . . . . . . . . . . . Impact Weapon . | . . . . . . . . . . . . . . . . Slashing Weapon 3 | . . . . . . 1 . . . 1 . . . 1 . Piercing Weapon . | . . . . . . . . . . . . . . . . Special Melee Weapon . | . . . . . . . . . . . . . . . . Unidentified Prototypes 10 | . . 1 . . 1 . 3 . . . . . 4 . 1 Parts Lost 19 | . 1 3 2 2 5 2 . . . 2 . . . 2 . Power 3 | . . 1 1 . . 1 . . . . . . . . . Propulsion 6 | . . 1 1 1 1 . . . . . . . . 2 . Utility 8 | . 1 . . 1 3 1 . . . 2 . . . . . Weapon 2 | . . 1 . . 1 . . . . . . . . . . Highest Loss Streak 2 | . 1 1 2 2 2 2 . . . 1 . . . 1 . Average Slot Usage (%) 91 | . 96 83 94 97 96 99 93 86 85 81 83 88 87 87 92 Engine 5 | . 14 10 9 7 1 10 6 . . . 1 5 2 . . Core 1 | . . . . . 11 2 . . . . . . . 1 5 Reactor 4 | . . . . . . . 6 13 12 11 9 5 8 9 5 Treads 20 | . 28 20 26 29 25 26 19 13 13 11 12 17 17 16 15 Device 9 | . . . 8 9 8 12 13 13 13 11 11 11 10 10 12 Storage 19 | . 24 22 23 23 20 20 20 20 20 17 17 17 17 17 15 Processor 6 | . . 10 3 . 3 6 6 6 6 7 11 11 11 11 10 Protection 6 | . . . 5 10 10 6 6 6 6 8 5 5 5 5 15 Energy Gun 3 | . 6 3 6 3 . . 8 13 5 2 . . . . 7 Energy Cannon 4 | . . . . 10 11 6 2 . 7 6 4 2 2 6 2 Ballistic Gun 4 | . 21 16 11 . 1 5 . . . . . . . . . Slashing Weapon 1 | . . . . . . . . . . 1 5 5 5 3 . Naked Turns . | . . . . . . . . . . . . . . . . Heaviest Build 171 | 14 74 75 100 102 108 132 143 139 146 163 154 154 157 162 171 Greatest Support 160 | 40 40 40 60 80 80 98 160 160 160 160 160 140 137 137 130 Greatest Overweight (x) 3 | . 1 3 2 1 1 1 1 . . 1 1 1 1 1 1 Average Overweight (x) . | . . 1 1 1 1 1 . . . . . 1 1 1 1 Largest Inventory Capacity 26 | 6 20 20 26 26 26 26 26 26 26 26 26 26 26 26 26 Average Capacity 23 | 5 14 20 23 26 26 26 26 26 26 26 26 26 26 26 26 Most Carried 26 | 4 18 20 26 26 26 26 26 26 26 26 26 26 26 26 26 Average Carried 23 | 2 11 17 22 24 25 25 25 26 26 25 25 25 25 24 25 Final Capacity 26 | 6 20 20 26 26 26 26 26 26 26 26 26 26 26 26 26 Final Carried 26 | 4 17 20 23 26 26 26 26 26 26 26 26 26 26 26 25 Class Distribution -------------------- 47% | Scavenger-Mutant 40% | Hauler-Mutant 10% | Mutant Dominant Class ---------------- Mutant | -10/Materials Hauler-Mutant | -9/Materials Hauler-Mutant | -8/Materials Scavenger-Mutant | -7/Factory Scavenger-Mutant | -6/Factory Scavenger-Mutant | -6/Extension Scavenger-Mutant | -6/Cetus Scavenger-Mutant | -6/Archives Scavenger-Mutant | -6/Hub_04(d) Scavenger-Mutant | -5/Factory Hauler-Mutant | -5/Upper Caves Hauler-Mutant | -5/Upper Caves Hauler-Mutant | -5/Zhirov Hauler-Mutant | -4/Proximity Caves Scavenger-Mutant | -4/Factory Resources | -11 -10 -9 -8 -7 -6 -6 -6 -6 -6 -5 -5 -5 -5 -4 -4 ----------- Run | Scr Mat Mat Mat Fac Fac Ext Cet Arc Hub Fac Upp Upp Zhi Pro Fac Matter Collected 3442 | 288 298 373 268 212 175 366 231 . 100 168 128 150 70 463 152 Remotely . | . . . . . . . . . . . . . . . . Salvage Created 8776 | 98 509 428 607 351 766 650 683 . 336 1033 232 777 117 1679 510 Parts 392 | 7 37 27 33 14 26 20 27 . 15 56 17 31 1 66 15 Haulers Intercepted 5 | . 2 2 . . . 1 . . . . . . . . . Recyclers Shooed 4 | . 1 1 . . . 1 . . 1 . . . . . . Parts Field Recycled . | . . . . . . . . . . . . . . . . Retrieved Matter . | . . . . . . . . . . . . . . . . Parts Self-Destructed 48 | . . . . . . . . . . . 6 9 1 32 . Prevented 72 | . . . . . . . . . . . 13 19 . 40 . Kills | -11 -10 -9 -8 -7 -6 -6 -6 -6 -6 -5 -5 -5 -5 -4 -4 ------- Run | Scr Mat Mat Mat Fac Fac Ext Cet Arc Hub Fac Upp Upp Zhi Pro Fac Combat Hostiles Destroyed 152 | . 11 17 11 7 9 6 13 . 5 17 6 13 . 26 11 Melee 2 | . . . . . . . . . . 2 . . . . . Guns 29 | . 11 6 10 . 2 . . . . . . . . . . Cannons 31 | . . . . 3 7 2 . . 4 5 . 1 . 7 2 AOE 69 | . . 11 1 4 . 1 8 . 1 9 5 9 . 13 7 Classes Destroyed 14 | 3 4 1 1 1 2 . . . . . 1 . . 1 . Worker 5 | 2 . . 1 . . . . . . 2 . . . . . Tunneler 2 | 1 . . 1 . . . . . . . . . . . . Hauler 5 | . 2 2 . . . 1 . . . . . . . . . Recycler 7 | 1 1 . 1 2 2 . . . . . . . . . . Watcher 5 | . 2 . . . . . 2 . 1 . . . . . . Swarmer 52 | . 6 10 . 4 1 1 4 . . 5 5 4 . 8 4 Grunt 51 | . 5 5 7 2 . 3 3 . 2 9 . 7 . 5 3 Brawler 5 | . . . . . 1 . . . . . . . . 4 . Duelist 3 | . . . . . 1 . . . . . . . . 2 . Protector 1 | . . . . . . . . . . . . . . 1 . Sentry 18 | . . 2 3 . 2 2 . . 1 3 . 1 . 2 2 Hunter 7 | . . . 1 . 3 . . . . . . 1 . 2 . Programmer 9 | . . . . 1 1 . . . 2 . . . . 3 2 Behemoth 1 | . . . . . . . . . . . 1 . . . . Cetus Guard 6 | . . . . . . . 6 . . . . . . . . Butcher 1 | . . . . . . 1 . . . . . . . . . Guerrilla 2 | . . . . . . 2 . . . . . . . . . Best Kill Streak 11 | 2 6 5 5 4 3 4 11 . 2 10 5 4 . 10 4 Combat Bots Only 10 | . 5 5 3 4 2 4 10 . 2 9 5 4 . 10 4 Max Kills in Single Turn 4 | 1 2 2 1 3 1 2 3 . 1 3 2 1 . 3 4 Gunslinging 1 | . 1 . . . . . . . . . . . . . . Exploded 4 | . . 2 1 3 . 1 3 . 1 3 2 1 . 3 4 Melee 1 | . . . . . . . . . . 1 . . . . . Uniques/NPCs Destroyed . | . . . . . . . . . . . . . . . . Combat | -11 -10 -9 -8 -7 -6 -6 -6 -6 -6 -5 -5 -5 -5 -4 -4 -------- Run | Scr Mat Mat Mat Fac Fac Ext Cet Arc Hub Fac Upp Upp Zhi Pro Fac Damage Taken 8598 | . 256 646 790 268 1252 866 481 15 373 726 237 642 . 1151 895 Core 783 | . 36 97 117 26 126 75 21 . 16 46 11 60 . 96 56 Absorbed by Shields 2432 | . . . . . . 330 169 6 143 713 86 233 . 424 328 Reduced by Siege Mode 7 | . . . . . . . . . . . . 7 . . . Core Remaining (%) 83 | 100 85 75 78 96 . . . . 72 . . . . 78 . Volleys Fired 390 | 10 46 42 40 14 40 26 17 . 17 23 15 31 . 51 18 Largest 2 | 2 2 2 2 2 2 2 2 . 2 2 1 1 . 2 2 Hottest 240 | 40 76 76 119 136 136 126 240 . 145 145 81 81 . 180 170 Shots Fired 640 | 20 87 72 73 25 78 52 24 . 34 36 15 31 . 59 34 Gun 303 | 20 87 63 63 . 3 10 15 . 10 5 . . . . 27 Cannon 258 | . . . 4 22 75 42 . . 24 24 7 16 . 39 5 Launcher 79 | . . 9 6 3 . . 9 . . 7 8 15 . 20 2 Special . | . . . . . . . . . . . . . . . . Kinetic 192 | 20 70 56 37 . 3 6 . . . . . . . . . Thermal 222 | . 17 7 26 22 75 . 1 . 24 22 . . . 18 10 Explosive 21 | . . 9 6 3 . . 3 . . . . . . . . Electromagnetic 205 | . . . 4 . . 46 20 . 10 14 15 31 . 41 24 Robot Hit Streak 27 | 9 15 8 22 7 19 15 10 . 13 18 15 27 . 14 14 Robot Miss Streak 3 | 3 2 3 2 1 2 2 1 . 2 2 . 2 . 2 2 Penetration Max . | . . . . . . . . . . . . . . . . Secondary Targets 3 | . 2 . 1 . . . . . . . . . . . . Max Gunslinging Chain 1 | . 1 . 1 . . . . . . . . . . . . Shots Hit Robots 480 | 15 59 50 55 17 58 46 15 . 26 41 10 17 2 45 24 Core Hits 312 | 5 22 28 31 11 28 25 25 . 11 31 7 22 1 50 15 Critical Hits 16 | . 1 . 1 2 8 1 . . 1 1 1 . . . . Critical Kills 6 | . 1 . 1 . 3 . . . . 1 . . . . . Critical Parts Destroyed 9 | . . . . 2 5 1 . . . . 1 . . . . Melee Attacks 27 | . . . . . . 3 . . . 13 . 2 2 7 . Impact . | . . . . . . . . . . . . . . . . Slashing 27 | . . . . . . 3 . . . 13 . 2 2 7 . Piercing . | . . . . . . . . . . . . . . . . Sneak Attacks 3 | . . . . . . 3 . . . . . . . . . Combat Hostiles . | . . . . . . . . . . . . . . . . Follow-up Attacks . | . . . . . . . . . . . . . . . . Damage Inflicted 18388 | 210 783 1330 1177 654 1233 1859 1840 . 756 2026 380 1037 271 3156 1676 Guns 3255 | 210 729 590 673 . 48 188 177 . 126 87 . . . . 427 Cannons 5159 | . . . 82 367 1185 839 . . 532 625 74 233 . 1055 167 Explosions 8391 | . . 740 422 272 . 361 1663 . 74 790 306 804 . 1877 1082 Melee 1355 | . . . . . . 340 . . . 520 . . 271 224 . Ramming 228 | . 54 . . 15 . 131 . . 24 4 . . . . . Kinetic 1823 | 210 525 497 407 . 48 136 . . . . . . . . . Thermal 6426 | . 204 93 266 367 1185 361 378 . 606 748 59 . . 945 1214 Explosive 2122 | . . 740 422 272 . . 688 . . . . . . . . Electromagnetic 6434 | . . . 82 . . 891 774 . 126 754 321 1037 . 1987 462 Impact . | . . . . . . . . . . . . . . . . Slashing 1355 | . . . . . . 340 . . . 520 . . 271 224 . Piercing . | . . . . . . . . . . . . . . . . Highest Corruption 6 | . . 3 2 . . 2 2 2 3 . . 1 1 6 1 Average Corruption 2 | . . 3 1 . . 2 2 1 1 . . 1 1 3 1 Corruption Purged 8 | . . . . . . . . 2 . . . . 1 5 . Effects 40 | . . 1 3 . . 2 3 1 3 . . 5 3 18 1 Message Errors 14 | . . . . . . . 1 . 2 . . 4 . 6 1 Matter Fused 6 | . . 1 . . . . . . . . . . . 5 . Heat Flow Errors 1 | . . . . . . . . 1 . . . . . . . Energy Discharges 5 | . . . 1 . . 2 1 . . . . . . 1 . Data Loss (minor) 5 | . . . 1 . . . 1 . . . . . 2 1 . Targeting Errors 9 | . . . 1 . . . . . 1 . . 1 1 5 . Overload Shots 1 | . . . . . . . 1 . . . . . . . . Overflow Damage 579 | . . 37 33 7 19 83 39 . 22 24 8 . . 134 173 Projectiles 81 | . . . . . 19 17 . . 22 1 . . . 22 . Explosions 363 | . . 37 33 7 . . 39 . . . 8 . . 66 173 Melee 135 | . . . . . . 66 . . . 23 . . . 46 . Knockbacks 3 | . . . . 1 . 2 . . . . . . . . . Impact 2 | . . . . 1 . 1 . . . . . . . . . Kinetic . | . . . . . . . . . . . . . . . . Secondary 1 | . . . . . . 1 . . . . . . . . . Self-Inflicted Damage 350 | . . 39 33 . . 25 . . . 12 . 39 . 29 173 Shots 14 | . . 1 1 . . 1 . . . 2 . 3 . 3 3 Rammed 18 | . 6 . . . . 9 . . 2 1 . . . . . Targets Rammed 19 | . 6 . . 1 . 9 . . 2 1 . . . . . Kicked . | . . . . . . . . . . . . . . . . Crushed 1 | . . . . 1 . . . . . . . . . . . Highest Temperature 300 | . 84 96 42 168 300 137 182 154 192 166 . 66 . 162 126 Average Temperature 57 | . 33 48 9 71 103 45 49 85 56 71 . 24 . 48 50 Received Heat Transfer 1387 | . 63 168 306 72 57 164 22 . 64 186 21 107 . 40 117 Effects 1 | . . . . . 1 . . . . . . . . . . Energy Bleed 1 | . . . . . 1 . . . . . . . . . . Siege Activations 2 | . . . . . . . . . . . 1 1 . . . Total Turns 30 | . . . . . . . . . . . 21 9 . . . Longest Duration 21 | . . . . . . . . . . . 21 9 . . . Robots Corrupted 21 | . . . . . . 3 5 . . 1 1 3 . 6 2 Combat Hostiles 21 | . . . . . . 3 5 . . 1 1 3 . 6 2 Parts Fried 38 | . . . . . . 3 5 . . 2 3 8 . 14 3 Impact Corruptions 1 | . . . . . . 1 . . . . . . . . . Robots Melted . | . . . . . . . . . . . . . . . . Combat Hostiles . | . . . . . . . . . . . . . . . . Parts Melted 17 | . 1 2 3 2 3 . . . 3 . . . . 1 2 Heat Transferred 8064 | . 518 222 666 629 2072 350 250 . 757 870 50 . . 1000 680 Parts Sabotaged . | . . . . . . . . . . . . . . . . Parts Stolen . | . . . . . . . . . . . . . . . . Parts Stripped . | . . . . . . . . . . . . . . . . Power Chain Reactions 16 | . . . . . . 2 2 . 1 3 1 2 . 4 1 Missiles Intercepted . | . . . . . . . . . . . . . . . . Alert | -11 -10 -9 -8 -7 -6 -6 -6 -6 -6 -5 -5 -5 -5 -4 -4 ------- Run | Scr Mat Mat Mat Fac Fac Ext Cet Arc Hub Fac Upp Upp Zhi Pro Fac Peak Influence 765 | 20 251 345 248 219 135 491 765 442 329 350 . . . . 592 Initial 257 | . 13 11 72 93 35 23 64 257 154 99 . . . . 245 Average 189 | 6 106 130 135 120 40 151 455 422 212 169 . . . . 475 Maximum Alert Level 3 | . 1 1 1 1 . 2 3 2 1 1 . . . . 2 Low Security (%) 62 | 100 85 81 64 88 100 69 10 . 46 62 . . . . . Level 1 20 | . 14 18 35 11 . 23 36 16 53 37 . . . . 6 Level 2 15 | . . . . . . 7 46 83 . . . . . . 93 Level 3 . | . . . . . . . 5 . . . . . . . . Level 4 . | . . . . . . . . . . . . . . . . Level 5 . | . . . . . . . . . . . . . . . . High Security . | . . . . . . . . . . . . . . . . Max Security . | . . . . . . . . . . . . . . . . Squads Dispatched 23 | . 2 2 3 2 3 3 . . 4 . . . . 1 3 Investigation 3 | . . 1 . 1 . 1 . . . . . . . . . Extermination 5 | . . . . 1 1 . . . 1 . . . . . 2 Reinforcement 11 | . 2 1 3 . 2 2 . . 1 . . . . . . Assault 2 | . . . . . . . . . . . . . . 1 1 Garrison 2 | . . . . . . . . . 2 . . . . . . Intercept . | . . . . . . . . . . . . . . . . Construction Impeded 1 | . . . . . . 1 . . . . . . . . . Haulers Reinforced . | . . . . . . . . . . . . . . . . Stealth | -11 -10 -9 -8 -7 -6 -6 -6 -6 -6 -5 -5 -5 -5 -4 -4 --------- Run | Scr Mat Mat Mat Fac Fac Ext Cet Arc Hub Fac Upp Upp Zhi Pro Fac Distress Signals 13 | . 3 1 1 . 1 4 2 . 1 . . . . . . Communications Jammed . | . . . . . . . . . . . . . . . . Distress Signals . | . . . . . . . . . . . . . . . . Times Spotted 251 | . 26 21 24 6 13 36 22 2 10 16 6 13 . 33 23 Peak Tracking Total 9 | . 4 6 5 4 3 5 7 1 4 5 5 4 . 9 6 Tactical Retreats 16 | . 1 2 2 . 1 3 1 . . . . . . 5 1 Traps | -11 -10 -9 -8 -7 -6 -6 -6 -6 -6 -5 -5 -5 -5 -4 -4 ------- Run | Scr Mat Mat Mat Fac Fac Ext Cet Arc Hub Fac Upp Upp Zhi Pro Fac Traps Triggered 13 | . . 1 3 1 1 3 . . 3 1 . . . . . Indirectly . | . . . . . . . . . . . . . . . . Trap Hack Attempts . | . . . . . . . . . . . . . . . . Triggered . | . . . . . . . . . . . . . . . . Disarmed . | . . . . . . . . . . . . . . . . Reprogrammed . | . . . . . . . . . . . . . . . . Reused . | . . . . . . . . . . . . . . . . Traps Extracted . | . . . . . . . . . . . . . . . . Installed . | . . . . . . . . . . . . . . . . Triggered 2 | . . . . . . . . . . . . . . 1 1 Machines | -11 -10 -9 -8 -7 -6 -6 -6 -6 -6 -5 -5 -5 -5 -4 -4 ---------- Run | Scr Mat Mat Mat Fac Fac Ext Cet Arc Hub Fac Upp Upp Zhi Pro Fac Machines Disabled 15 | . . 1 . . . 3 1 1 . . . . . 2 7 Max in Single Turn 5 | . . 1 . . . 2 1 . . . . . . 2 5 Machines Sabotaged . | . . . . . . . . . . . . . . . . Garrisons Compromised . | . . . . . . . . . . . . . . . . Overloaded Fab Kills . | . . . . . . . . . . . . . . . . Fab Network Shutdowns . | . . . . . . . . . . . . . . . . Hacking | -11 -10 -9 -8 -7 -6 -6 -6 -6 -6 -5 -5 -5 -5 -4 -4 --------- Run | Scr Mat Mat Mat Fac Fac Ext Cet Arc Hub Fac Upp Upp Zhi Pro Fac Machines Accessed 48 | . 5 4 1 4 3 11 4 . 6 4 . . 4 . 2 Terminals 38 | . 4 3 1 3 3 11 4 . 5 3 . . . . 1 Fabricators 1 | . . . . . . . . . . . . . . . 1 Repair Stations 2 | . 1 1 . . . . . . . . . . . . . Recycling Units . | . . . . . . . . . . . . . . . . Scanalyzers 1 | . . . . . . . . . . 1 . . . . . Garrison Access 2 | . . . . 1 . . . . 1 . . . . . . Total Hacks 133 | . 12 19 3 5 9 33 6 . 14 9 . . 17 . 6 Successful 84 | . 7 12 1 1 7 21 1 . 8 5 . . 17 . 4 Failed 49 | . 5 7 2 4 2 12 5 . 6 4 . . . . 2 Catastrophic 9 | . . . 2 2 . 1 3 . 1 . . . . . . Database Lockouts . | . . . . . . . . . . . . . . . . Manual 58 | . 5 8 3 . 6 16 6 . 10 3 . . . . 1 Terminals 101 | . 10 13 3 4 9 33 6 . 11 8 . . . . 4 Fabricators 2 | . . . . . . . . . . . . . . . 2 Repair Stations 8 | . 2 6 . . . . . . . . . . . . . Recycling Units . | . . . . . . . . . . . . . . . . Scanalyzers 1 | . . . . . . . . . . 1 . . . . . Garrison Access 4 | . . . . 1 . . . . 3 . . . . . . Terminal Hacks 60 | . 5 6 1 1 6 15 . . 4 4 . . 17 . 1 Record 5 | . . . . . . . . . . . . . 5 . . Part Schematic 4 | . . . . . . . . . . . . . 4 . . Robot Analysis 7 | . . 1 . . . 2 . . . . . . 4 . . Prototype ID Bank 16 | . 4 3 . . 1 1 . . 2 1 . . 4 . . Open Door 8 | . . . . . 1 7 . . . . . . . . . Branch Access Points 3 | . . . . . 1 . . . . 1 . . . . 1 Terminal Index 4 | . . . . 1 1 1 . . 1 . . . . . . Unreport Threat 7 | . . 1 1 . 1 3 . . . 1 . . . . . Locate Traps 4 | . 1 1 . . 1 . . . 1 . . . . . . Dispatch Records 1 | . . . . . . . . . . 1 . . . . . Hauler Manifests 1 | . . . . . . 1 . . . . . . . . . Fabricator Hacks 2 | . . . . . . . . . . . . . . . 2 Load Schematic 1 | . . . . . . . . . . . . . . . 1 Build 1 | . . . . . . . . . . . . . . . 1 Repair Station Hacks 6 | . 2 4 . . . . . . . . . . . . . Scan Component 3 | . 1 2 . . . . . . . . . . . . . Repair 3 | . 1 2 . . . . . . . . . . . . . Recycling Unit Hacks . | . . . . . . . . . . . . . . . . Scanalyzer . | . . . . . . . . . . . . . . . . Garrison Access Hacks . | . . . . . . . . . . . . . . . . Unauthorized Hacks 16 | . . 2 . . 1 6 1 . 4 1 . . . . 1 Terminals 16 | . . 2 . . 1 6 1 . 4 1 . . . . 1 Track 10 | . . 2 . . . 2 . . 4 1 . . . . 1 Botnet 6 | . . . . . 1 4 1 . . . . . . . . Fabricators . | . . . . . . . . . . . . . . . . Repair Stations . | . . . . . . . . . . . . . . . . Recycling Units . | . . . . . . . . . . . . . . . . Scanalyzers . | . . . . . . . . . . . . . . . . Garrison Access . | . . . . . . . . . . . . . . . . Data Cores Recovered . | . . . . . . . . . . . . . . . . Used . | . . . . . . . . . . . . . . . . Hacking Detections 41 | . 5 3 1 4 3 10 4 . 5 4 . . . . 2 Full Trace Events 1 | . . . . . . 1 . . . . . . . . . Feedback Events . | . . . . . . . . . . . . . . . . Feedback Blocked . | . . . . . . . . . . . . . . . . Robot Schematics Acquired . | . . . . . . . . . . . . . . . . Robots Built . | . . . . . . . . . . . . . . . . Matter . | . . . . . . . . . . . . . . . . Time . | . . . . . . . . . . . . . . . . Total Robot Build Rating . | . . . . . . . . . . . . . . . . Part Schematics Acquired 4 | . . . . . . . . . . . . . 4 . . Parts Built 1 | . . . . . . . . . . . . . . . 1 Matter 351 | . . . . . . . . . . . . . . . 351 Time 187 | . . . . . . . . . . . . . . . 187 Total Part Build Rating 7 | . . . . . . . . . . . . . . . 7 Parts Repaired 3 | . 1 2 . . . . . . . . . . . . . Time 78 | . 26 52 . . . . . . . . . . . . . Parts Recycled . | . . . . . . . . . . . . . . . . Recycled Matter . | . . . . . . . . . . . . . . . . Retrieved Matter . | . . . . . . . . . . . . . . . . Retrieved Components . | . . . . . . . . . . . . . . . . Parts Scanalyzed . | . . . . . . . . . . . . . . . . Part Schematics Acquired . | . . . . . . . . . . . . . . . . Parts Damaged . | . . . . . . . . . . . . . . . . Bothacking | -11 -10 -9 -8 -7 -6 -6 -6 -6 -6 -5 -5 -5 -5 -4 -4 ------------ Run | Scr Mat Mat Mat Fac Fac Ext Cet Arc Hub Fac Upp Upp Zhi Pro Fac Used RIF Installer . | . . . . . . . . . . . . . . . . Robots Hacked . | . . . . . . . . . . . . . . . . Non-combat . | . . . . . . . . . . . . . . . . Combat . | . . . . . . . . . . . . . . . . Robot Hacks Applied . | . . . . . . . . . . . . . . . . Relay Couplers Released 3 | . . . . . . . . . 3 . . . . . . Programmers 3 | . . . . . . . . . 3 . . . . . . Robots Rewired 13 | . . . . . . 11 . . . . . . . 2 . Allies Hacked . | . . . . . . . . . . . . . . . . Hacks Repelled . | . . . . . . . . . . . . . . . . Allies | -11 -10 -9 -8 -7 -6 -6 -6 -6 -6 -5 -5 -5 -5 -4 -4 -------- Run | Scr Mat Mat Mat Fac Fac Ext Cet Arc Hub Fac Upp Upp Zhi Pro Fac Total Allies 31 | . . . . . . 24 5 . . . . . . 2 . Largest Group 12 | . . . . . . 12 6 6 . . . . . 2 . Highest-Rated Group 626 | . . . . . . 450 626 626 . . . . . 96 . Highest-Rated Ally 156 | . . . . . . 156 156 156 . . . . . 48 . Total Orders 4 | . . . . . . 1 2 1 . . . . . . . STAY 2 | . . . . . . 1 1 . . . . . . . . ROAM 1 | . . . . . . . . 1 . . . . . . . FOLLOW 1 | . . . . . . . 1 . . . . . . . . Ally Attacks 236 | . . . . . . 167 35 20 . . . . . 9 5 Total Damage 5718 | . . . . . . 3365 1133 856 . . . . . 334 30 Kills 46 | . . . . . . 29 10 4 . . . . . 3 . Allies Corrupted . | . . . . . . . . . . . . . . . . Allies Melted . | . . . . . . . . . . . . . . . . Intel | -11 -10 -9 -8 -7 -6 -6 -6 -6 -6 -5 -5 -5 -5 -4 -4 ------- Run | Scr Mat Mat Mat Fac Fac Ext Cet Arc Hub Fac Upp Upp Zhi Pro Fac Robot Analysis Total 7 | . . 1 . . . 2 . . . . . . 4 . . Derelict Logs Recovered 5 | . . . . . . . . . . . 1 2 . 2 . Drone Launches 2 | . . . . . . . . . . . . . . . 2 Drone Recoveries . | . . . . . . . . . . . . . . . . Exploration | -11 -10 -9 -8 -7 -6 -6 -6 -6 -6 -5 -5 -5 -5 -4 -4 ------------- Run | Scr Mat Mat Mat Fac Fac Ext Cet Arc Hub Fac Upp Upp Zhi Pro Fac Turns Passed 11669 | 156 1357 588 580 603 875 1564 494 344 547 736 692 845 364 1133 791 Spaces Moved 5230 | 72 656 209 235 295 380 711 223 75 264 338 384 418 184 487 299 Core 2 | 2 . . . . . . . . . . . . . . . Treads 5228 | 70 656 209 235 295 380 711 223 75 264 338 384 418 184 487 299 Legs . | . . . . . . . . . . . . . . . . Wheels . | . . . . . . . . . . . . . . . . Hover . | . . . . . . . . . . . . . . . . Flight . | . . . . . . . . . . . . . . . . Fastest Speed 50 | 50 160 180 180 180 180 180 160 160 160 160 160 180 183 183 183 Average Speed 177 | 156 174 184 180 180 180 181 175 160 160 171 166 181 183 183 183 Slowest Speed 220 | 160 180 220 200 180 180 182 180 160 160 180 180 183 183 185 183 Overloaded Moves . | . . . . . . . . . . . . . . . . Propulsion Burnouts . | . . . . . . . . . . . . . . . . Robots Hopped . | . . . . . . . . . . . . . . . . Cave-ins Triggered . | . . . . . . . . . . . . . . . . Teleports 1 | . . . . . . . . . . . . . . . 1 Exploration Rate (%) 41 | 6 87 23 22 9 12 85 78 63 23 12 49 63 60 63 9 Regions Visited 15 Branch Regions 8 Pre-discovered Areas 4 | . . . . . . . . . . . . . 3 1 . Known Exits Taken 2 | . . . . . 1 . . . . 1 . . . . . Unknown Exits Taken 13 | 1 1 1 1 1 . 1 1 1 1 . 1 1 1 1 . Scrap Searched 7 | . . . . . . . . . . . 3 1 . 3 . Spaces Dug 34 | . . 10 11 . . . . . . 1 . 8 . 4 . Terrain Destroyed 264 | . . 49 46 5 . 9 63 . 7 3 2 11 . 21 48 Melee 4 | . . . . . . . . . . 1 . 2 . 1 . Projectile 12 | . . . . . . . . . 1 2 . . . 7 2 AOE 248 | . . 49 46 5 . 9 63 . 6 . 2 9 . 13 46 Terrain Rammed . | . . . . . . . . . . . . . . . . Walls Destroyed . | . . . . . . . . . . . . . . . . Machines Disabled . | . . . . . . . . . . . . . . . . Actions | -11 -10 -9 -8 -7 -6 -6 -6 -6 -6 -5 -5 -5 -5 -4 -4 --------- Run | Scr Mat Mat Mat Fac Fac Ext Cet Arc Hub Fac Upp Upp Zhi Pro Fac Total 6939 | 92 779 336 314 343 504 928 302 298 351 435 425 466 210 644 512 Wait 723 | . 34 60 19 5 16 43 20 222 59 30 10 6 . 48 151 Move 5215 | 71 655 208 234 294 379 710 222 74 263 337 383 417 183 486 299 Hop . | . . . . . . . . . . . . . . . . Pick Up 123 | 4 21 6 7 11 25 6 8 . . 8 5 2 4 2 14 Fast Attach 54 | 7 1 6 2 . 6 6 6 . 6 . 3 . 7 3 1 Attach 37 | . . 3 4 4 6 3 . . . 6 1 . 1 1 8 Detach 1 | . . . . . . . . . . 1 . . . . . Swap 126 | . 5 7 7 9 6 26 10 2 2 10 2 6 3 23 8 Drop 135 | . 11 4 1 5 26 28 19 . 2 6 6 2 10 2 13 Fire 390 | 10 46 42 40 14 40 26 17 . 17 23 15 31 . 51 18 Melee 27 | . . . . . . 3 . . . 13 . 2 2 7 . Ram . | . . . . . . . . . . . . . . . . Kick . | . . . . . . . . . . . . . . . . Crush 19 | . 6 . . 1 . 9 . . 2 1 . . . . . Escape Stasis 4 | . . . . . . 4 . . . . . . . . . Rewire 85 | . . . . . . 64 . . . . . . . 21 . Trap . | . . . . . . . . . . . . . . . . Miscellaneous . | . . . . . . . . . . . . . . . . Route ------- -11/Scrapyard -10/Materials (discovered 4 exits: *Mat x3 / [*Min]) -9/Materials -8/Materials -7/Factory -6/Factory (discovered 4 exits: Low x2 / *Ext x2) -6/Extension (discovered 2 exits: *Fac / *Cet) -6/Cetus (discovered 2 exits: *Fac / [*Arc]) -6/Archives -6/Hub_04(d) -5/Factory (discovered 2 exits: *Upp x2) -5/Upper Caves -5/Upper Caves (discovered 2 exits: *Fac / *Zhi) -5/Zhirov -4/Proximity Caves -4/Factory (discovered 4 exits: Res / Upp x2 / Arm) History --------- Turn | Location | Event 6 | -11/Scrapyard | Discovered new exit (range 15) 157 | -11/Scrapyard | Entered Materials 313 | -10/Materials | Discovered new exit (range 5) 318 | -10/Materials | Build established: Mutant 403 | -10/Materials | Discovered new exit (range 3) 544 | -10/Materials | Discovered new exit (range 15) 793 | -10/Materials | Discovered new exit (range 15) 1426 | -10/Materials | Repaired Lgt. Treads 1514 | -10/Materials | Entered another Materials area 1514 | -9/Materials | Evolved 2 slots: Utility x2 1584 | -9/Materials | Build established: Hauler-Mutant 1802 | -9/Materials | Repaired Lgt. Treads 1830 | -9/Materials | Repaired Assault Rifle 1921 | -9/Materials | Discovered new exit (range 10) 2102 | -9/Materials | Entered another Materials area 2102 | -8/Materials | Evolved 2 slots: Propulsion x1, Utility x1 2643 | -8/Materials | Discovered new exit (range 10) 2682 | -8/Materials | Entered Factory 2682 | -7/Factory | Evolved 2 slots: Propulsion x1, Utility x1 3162 | -7/Factory | Discovered new exit (range 13) 3285 | -7/Factory | Entered another Factory area 3285 | -6/Factory | Evolved 2 slots: Power x1, Utility x1 3331 | -6/Factory | Identified exit to Lower Caves 3331 | -6/Factory | Identified exit to Extension 3447 | -6/Factory | Build established: Scavenger-Mutant 3545 | -6/Factory | Found Prototype Processor 3546 | -6/Factory | Identified Exp. Signal Interpreter 3550 | -6/Factory | Found Exp. Signal Interpreter 4160 | -6/Factory | Entered Extension 4311 | -6/Extension | Rescued a captive Derelict 4311 | -6/Extension | Rescued a captive Derelict 4348 | -6/Extension | Rescued a captive Derelict 4349 | -6/Extension | Rescued a captive Derelict 4407 | -6/Extension | Rescued a captive Derelict 4407 | -6/Extension | Rescued a captive Derelict 4545 | -6/Extension | Rescued a captive Derelict 4546 | -6/Extension | Rescued a captive Derelict 4572 | -6/Extension | Rescued a captive Derelict 4573 | -6/Extension | Rescued a captive Derelict 4810 | -6/Extension | Disrupted transfer network 4960 | -6/Extension | Spotted B-75 Beast 4970 | -6/Extension | Allies destroyed B-75 Beast 5009 | -6/Extension | Spotted B-75 Beast 5026 | -6/Extension | Allies destroyed B-75 Beast 5266 | -6/Extension | Rescued A7 5463 | -6/Extension | Rescued a captive Derelict 5485 | -6/Extension | Rescued a captive Derelict 5646 | -6/Extension | Discovered new exit (range 10) 5647 | -6/Extension | Discovered new exit (range 6) 5724 | -6/Extension | Entered Cetus 5724 | -6/Cetus | Accompanied by 1 ally (A7) 5729 | -6/Cetus | Acquired a Cetus Manufacturing Module code from A7 5748 | -6/Cetus | Spotted Cetus Guard 5748 | -6/Cetus | Spotted Cetus Guard 5751 | -6/Cetus | Destroyed Cetus Guard 5751 | -6/Cetus | Spotted Cetus Guard 5755 | -6/Cetus | Spotted Cetus Guard 5755 | -6/Cetus | Destroyed Cetus Guard 5760 | -6/Cetus | Destroyed Cetus Guard 5762 | -6/Cetus | Destroyed Cetus Guard 5803 | -6/Cetus | Destroyed 10 combat bots 5901 | -6/Cetus | Started Cetus Manufacturing Module 5920 | -6/Cetus | Escorted A7 to Cetus Mainframe 5926 | -6/Cetus | Manufactured an Enhanced Grunt 5951 | -6/Cetus | Manufactured an Enhanced Grunt 5976 | -6/Cetus | Manufactured an Enhanced Grunt 6001 | -6/Cetus | Manufactured an Enhanced Grunt 6026 | -6/Cetus | Manufactured an Enhanced Grunt 6045 | -6/Cetus | Discovered new exit (range 15) 6080 | -6/Cetus | Spotted Cetus Guard 6081 | -6/Cetus | Spotted Cetus Guard 6084 | -6/Cetus | Spotted Cetus Guard 6085 | -6/Cetus | Allies destroyed Cetus Guard 6090 | -6/Cetus | Allies destroyed Cetus Guard 6090 | -6/Cetus | Spotted Cetus Guard 6095 | -6/Cetus | Destroyed Cetus Guard 6099 | -6/Cetus | Destroyed Cetus Guard 6111 | -6/Cetus | Discovered new exit (range 15) 6120 | -6/Cetus | Met Revision 17 6218 | -6/Cetus | Entered Archives 6218 | -6/Archives | Accompanied by 6 allies (A7) 6223 | -6/Archives | Received a hacking code to weaken MAIN.C 6309 | -6/Archives | Discovered new exit (range 16) 6562 | -6/Archives | Entered Hub_04(d) 6615 | -6/Hub_04(d) | Discovered new exit (range 15) 6977 | -6/Hub_04(d) | Garrison activated, responded to threat 7109 | -6/Hub_04(d) | Entered Factory 7109 | -5/Factory | Evolved 2 slots: Utility x2 7442 | -5/Factory | Destroyed 9 combat bots 7531 | -5/Factory | Identified exit to Upper Caves 7845 | -5/Factory | Entered Upper Caves 7997 | -5/Upper Caves | Encountered a Warlord checkpoint 7999 | -5/Upper Caves | Learned Factory security intel 8064 | -5/Upper Caves | Attracted the attention of an 0b10 checkpoint 8100 | -5/Upper Caves | Build established: Hauler-Mutant 8218 | -5/Upper Caves | Spotted B-75 Beast 8256 | -5/Upper Caves | Destroyed B-75 Beast 8526 | -5/Upper Caves | Discovered new exit (range 7) 8537 | -5/Upper Caves | Entered another Upper Caves area 8541 | -5/Upper Caves | Discovered new exit (range 9) 8615 | -5/Upper Caves | Build established: Scavenger-Mutant 8731 | -5/Upper Caves | Attracted the attention of an 0b10 checkpoint 8917 | -5/Upper Caves | Learned Factory trap positions 8919 | -5/Upper Caves | Learned location of 1 exit from Factory 9242 | -5/Upper Caves | Build established: Hauler-Mutant 9363 | -5/Upper Caves | Discovered new exit (range 11) 9382 | -5/Upper Caves | Entered Zhirov 9382 | -5/Zhirov | Discovered new exit (range 3) 9417 | -5/Zhirov | Met Zhirov 9452 | -5/Zhirov | Learned location of Quarantine (-2) 9452 | -5/Zhirov | Learned location of Testing (-3) 9452 | -5/Zhirov | Learned location of Command (-1) 9470 | -5/Zhirov | Zhirov requested help retrieving the SGEMP Prototype 9498 | -5/Zhirov | Found Alien Artifact 9498 | -5/Zhirov | Identified Integrated Dissipator 9498 | -5/Zhirov | Installed Integrated Dissipator, increased core heat dissipation (+20) 9645 | -5/Zhirov | Found Alien Artifact 9746 | -5/Zhirov | Entered Proximity Caves 9983 | -4/Proximity Caves | Attracted the attention of an 0b10 checkpoint 10252 | -4/Proximity Caves | Learned 8 Research zone layouts 10549 | -4/Proximity Caves | Attracted the attention of an 0b10 outpost 10604 | -4/Proximity Caves | Destroyed 10 combat bots 10870 | -4/Proximity Caves | Discovered new exit (range 5) 10879 | -4/Proximity Caves | Entered Factory 10879 | -4/Factory | Evolved 2 slots: Utility x2 10880 | -4/Factory | Identified exit to Research 10881 | -4/Factory | Loaded intel: 89 trap records 10988 | -4/Factory | Identified exit to Upper Caves 10988 | -4/Factory | Identified exit to Armory 11301 | -4/Factory | Build established: Scavenger-Mutant 11379 | -4/Factory | First assault squad dispatched 11538 | -4/Factory | Fabricated Assault Drone Bay (x1) 11669 | -4/Factory | Identified Transdimensional Reconstructor 11669 | -4/Factory | Warped through subspace 11670 | -4/Factory | Self-destructed Last Messages --------------- 11603_ U-05 Engineer lays Concrete. 11605_ U-05 Engineer builds a Wall. 11605_ U-05 Engineer lays Concrete. 11607_ R-10 Processor collects Antigrav System. 11607_ U-05 Engineer lays Concrete. 11624_ U-05 Engineer builds a Wall. 11624_ U-05 Engineer lays Concrete. 11629_ ALERT: Rogue bot located, Programmers report to Factory Zone 7R. 11654_ Dropped Lrn. Proton Cannon. 11654_ Acquired HERF Cannon. 11656_ Dropped Assault Drone Bay. 11657_ >> Lost connection to Assault Drone. 11658_ Acquired Lrn. Proton Cannon. 11658_ C-30 ARC bursts open, deploying its payload. 11658_ G-73 Enforcer unfolds itself. 11658_ L-61 Swordsman unfolds itself. 11658_ G-67 Veteran unfolds itself. 11658_ I-47 Archangel unfolds itself. 11669_ Identified Transdimensional Reconstructor. 11669_ Warped through subspace. Map ----- +----------------------------------------------------+ | ?????????????????????????????????????????????????? | | ?????????????????????????????????????????????????? | | ?????????????????????????????????????????????????? | | ?????????????????????????????????????????????????? | | ?????????????????????????????????????????????????? | | ?????????????????????????^???????????????????????? | | ?????????????????????????????????????????????????? | | ?????????????????????????????????????????????????? | | ?????????????????????????????????????????????????? | | ?????????????????????????????????????????????????? | | ????????????????????????? ???????????????????????? | | ?????????????????????^ ? ? "????????????????????? | | ????????????????????# ? ? "????????????????????? | | ????????????????????#! " " "????????????????????? | | ????????????????????# " "^"????????????????????? | | ????????????????????# ss?????????????????????? | | ????????????????????# s?????????????????????? | | ?????????????########^ ?????????????????????? | | ???????????? ?????????????????????? | | ????????????? s??????????????????????? | | ??????????????? ??????????????????????? | | ????????????????? ??????????????????????? | | ??????????????????? ??????????????????????? | | ????????????????????# #??????????????????????? | | ????????????????????# #??????????????????????? | | ????????????????????# @#??????????????????????? | | ????????????????????# +??????????????????????? | | ????????????????????# #??????????????????????? | | ????????????????????# #??????????????????????? | | ????????????????????# #??????????????????????? | | ????????????????????# #???????????????????#### | | ????????????????????# #???????????????????# | | ????????????????????#^^^^^#???????????????????# | | ????????????????????# #???????????????????# | | ????????????????????# ????????????????????# | | ????????????????????# ????????????????????# | | ????????????????????# ????????????????????# | | ????????????????????# ????????????????????# | | ????????????????????# ????????????????????# | | ????????????????????? ????????????????????# | | ??????????????????????? ????????????????????#! | | ??????????????????????????????????????????????# | | ??????????????????????????????????????????????# | | ??????????????????????????????????????????????#### | | ?????????????????????????????????????????????????? | | ?????????????????????????????????????????????????? | | ?????????????????????????????????????????????????? | | ?????????????????????????????????????????????????? | | ?????????????????????????????????????????????????? | | ?????????????????????????????????????????????????? | +----------------------------------------------------+ Best States ------------- Heat Dissipation 90 Energy Generation 45 Energy Capacity 600 Matter Stores 300 Matter Capacity 300 Sight Range 16 Terrain Scan Range 16 Terrain Scan Density 10 Armor Coverage 1200 Resistance: TH 15 Resistance: EM 15 Propulsion Shielding 66 Utility Shielding 90 Evasion (%) 40 Targeting Accuracy 8 Core Analysis 8 Recoil Reduction 4 Particle Charging 25 Item Schematics ----------------- Assault Drone Bay | -5/Zhirov | Free Exp. Heat Sink | -5/Zhirov | Free Exp. Optical Array | -5/Zhirov | Free Imp. Arc Thrower | -5/Zhirov | Free Robot Schematics ------------------ None Fabricated ------------ Assault Drone Bay | x1 | -4/Factory Alien Tech Used ----------------- Integrated Dissipator Transdimensional Reconstructor Achievements -------------- None Challenges ------------ None Game ------ Seed TitaniumMolecularStorage Manual? 0 Play Time 01:08:43 Cumulative 627.0 hours Start 2020.10.01 @ 10:56:02 End 2020.10.02 @ 09:57:32 Sessions 3 Manual Loads 0 Difficulty Rogue Special Mode None Game No. 960 Rogue 960 Adventurer 0 Explorer 0 Win Type - Total 59 Types 38/1/7/10/3/0/0/0/0 Lore% 93 Gallery% 94 Achievement% 82 Wizard Run 0 Options --------- ASCII 1 Keyboard 0 Movement Numpad Keybinds 0 Fullscreen 0 Font 14/SmallcapsGlow Map View 76x50 Tactical HUD 1 Map Filters NONE Filters NONE Steam 1 RUN: 4315a9ca-3564-4576-bfbd-c43e195f6c1d